bitfinex/quotes_ETHUSD_20241108
["timestamp","ask_amount","ask_price","bid_price","bid_amount"]
[1731087994974,0.55,2916.3,2915.7,0.0086109]
[1731087996145,0.41432,2916.3,2915.7,0.0086109]
[1731087996348,0.55,2916.3,2915.5,0.0086109]
[1731087996549,3.8564361,2916.3,2915.5,0.0086109]
[1731087996744,3.0,2916.2,2915.7,0.0086109]
[1731087997086,3.0,2916.2,2915.5,0.0086109]
[1731087998399,3.0,2915.9,2915.3,0.0086109]
[1731087998747,3.0,2915.9,2915.1,60.7973109]
[1731087998948,3.8564361,2916.0,2915.1,60.0]
[1731087998949,3.5932,2915.6,2915.1,60.0]
[1731087999584,0.5932,2915.6,2915.1,60.0]
[1731087999809,3.0,2915.8,2915.1,60.0086109]
[1731088000004,3.0,2915.8,2915.3,0.0086109]
[1731088000297,3.55,2916.2,2915.4,0.783]
[1731088000497,3.0,2915.9,2915.4,0.783]
[1731088000689,3.0,2915.9,2915.3,0.0086109]
[1731088001566,0.5932,2915.8,2915.3,0.0086109]
[1731088004364,0.5932,2915.8,2915.1,60.0]
[1731088004365,3.3064361,2915.7,2915.1,60.0]
[1731088004563,3.38996361,2915.6,2915.1,60.0]
[1731088005400,0.55,2915.7,2915.1,60.0]
[1731088005814,0.5932,2915.8,2915.1,60.0]
[1731088006377,4.33816361,2916.1,2915.2,0.8223]
[1731088006582,3.0,2915.9,2915.2,0.8223]
[1731088007696,3.0,2915.6,2915.2,0.8223]
[1731088008329,3.0,2915.6,2915.1,60.0]
[1731088008330,3.63064361,2915.6,2915.1,60.0]
[1731088008623,0.5932,2915.5,2915.1,60.0]
[1731088010009,0.5932,2915.5,2914.8,0.0086109]
[1731088010219,0.5932,2915.5,2913.0,2.191567]
[1731088010220,0.7856,2914.1,2913.0,0.05142584]
[1731088010539,3.0,2913.6,2913.0,0.05142584]
[1731088010920,3.55,2914.0,2913.0,0.05142584]
[1731088011509,3.3064361,2913.8,2913.0,0.05142584]
[1731088011724,3.55,2913.7,2913.0,0.05142584]
[1731088012396,3.3064361,2913.5,2912.0,0.02]
[1731088012608,3.3064361,2913.2,2911.8,0.02]
[1731088012813,3.3064361,2913.2,2912.0,0.01]
[1731088013110,3.3064361,2913.2,2912.1,0.8049]
[1731088013297,3.3064361,2912.9,2912.1,0.8049]
[1731088013494,3.0,2912.8,2912.1,0.8049]
[1731088013707,3.3064361,2912.6,2912.1,0.8049]
[1731088014138,3.3064361,2912.6,2911.1,0.8049]
[1731088014139,3.0,2912.5,2911.1,0.8049]
[1731088014506,3.0,2912.2,2911.1,0.8049]
[1731088015603,3.0,2912.4,2911.1,0.8049]
[1731088016140,4.07330538,2912.1,2911.1,0.8049]
[1731088017000,3.0,2912.4,2911.1,0.8049]
[1731088018133,4.07330538,2912.1,2911.1,0.8049]
[1731088018945,3.0,2912.0,2911.1,0.8049]
[1731088019102,4.07330538,2911.7,2911.1,0.8049]
[1731088019450,3.0,2911.6,2911.1,0.8049]
[1731088021211,3.0,2911.8,2911.1,0.8049]
[1731088023651,12.38,2911.9,2911.1,0.8049]
[1731088024915,12.51847299,2912.4,2911.1,0.8049]
[1731088025120,12.38,2912.3,2911.1,0.8049]
[1731088025441,7.07330538,2912.2,2911.1,0.8049]
[1731088028037,4.89940538,2911.8,2911.1,0.8049]
[1731088028360,15.38,2911.7,2910.2,0.826]
[1731088028509,3.0,2911.5,2910.2,0.826]
[1731088029244,19.45330538,2911.5,2910.2,0.826]
[1731088029964,3.0,2911.1,2910.2,0.826]
[1731088030131,12.38,2911.0,2910.2,0.826]
[1731088030523,7.07330538,2910.9,2910.2,0.826]
[1731088031356,7.07330538,2910.9,2910.1,1.24]
[1731088031357,3.0,2910.5,2910.1,1.24]
[1731088031656,3.0,2910.3,2910.1,1.24]
[1731088032047,19.45330538,2910.3,2910.1,1.24]
[1731088032531,15.38,2910.3,2910.1,1.24]
[1731088032733,12.38,2910.3,2910.2,0.7638]
[1731088032933,12.38,2911.0,2910.2,0.96418]
[1731088033125,12.38,2911.3,2910.3,0.7638]
[1731088033322,12.38,2911.4,2910.3,0.7638]
[1731088033523,12.38,2911.4,2910.5,0.7823]
[1731088035547,3.0,2911.3,2910.5,0.7823]
[1731088036076,3.0,2911.1,2910.5,0.7823]
[1731088036263,3.0,2911.1,2910.2,0.8197]
[1731088036855,3.0,2910.9,2910.2,0.8197]
[1731088037954,12.38,2911.0,2910.3,0.8142]
[1731088038147,42.38,2911.0,2910.3,0.8142]
[1731088038784,42.38,2911.0,2910.5,0.7856]
[1731088038931,30.0,2911.0,2910.3,4.63330538]
[1731088039266,30.0,2911.0,2910.7,0.8267]
[1731088039566,30.0,2911.0,2910.9,0.8267]
[1731088039864,30.0,2911.0,2910.9,1.3767]
[1731088040735,28.07205167,2911.0,2910.9,5.45000538]
[1731088040939,22.67068697,2911.0,2910.9,8.45000538]
[1731088041227,18.67078697,2911.0,2910.9,9.30387576]
[1731088042166,17.88614105,2911.0,2910.9,9.30387576]
[1731088043639,17.29782952,2911.0,2910.9,9.30387576]
[1731088044435,17.29782952,2911.0,2910.9,2.24057038]
[1731088044651,17.29782952,2911.0,2910.9,1.3867]
[1731088046584,11.36723311,2911.0,2910.9,1.45539612]
[1731088046754,0.05154558,2912.0,2911.5,0.8023]
[1731088046937,0.05154558,2912.0,2911.7,0.8023]
[1731088047142,0.05154558,2912.0,2911.6,4.14198028]
[1731088047143,0.05154558,2912.0,2911.9,0.8023]
[1731088047342,0.05154558,2912.0,2911.9,0.87097486]
[1731088047578,0.05154558,2912.0,2911.9,0.8023]
[1731088047888,0.05154558,2912.0,2911.9,0.87097482]
[1731088048040,0.05154558,2912.0,2911.9,1.42097482]
[1731088048243,0.05154558,2912.0,2911.9,1.61451511]
[1731088048672,0.05154558,2912.0,2911.9,1.54584029]
[1731088049855,0.05154558,2912.0,2911.9,1.6145045]
[1731088050058,0.05154558,2912.0,2911.9,1.54584029]
[1731088050259,0.752,2913.6,2912.4,0.8063]
[1731088050469,0.752,2914.1,2912.7,0.8063]
[1731088050678,1.3132,2914.0,2912.8,0.48896054]
[1731088053569,0.8146,2913.9,2912.7,0.8063]
[1731088053886,0.8146,2913.9,2912.8,0.06865744]
[1731088054488,3.0,2913.8,2912.7,0.8063]
[1731088054980,0.8124,2913.7,2912.5,0.8117]
[1731088056398,0.01,2913.5,2912.4,1.24]
[1731088056545,4.84490538,2913.4,2912.4,1.24]
[1731088056752,3.48549054,2913.3,2912.4,1.24]
[1731088056980,0.8069,2913.2,2912.4,1.24]
[1731088057573,4.07330538,2913.0,2912.4,1.24]
[1731088057751,0.8281,2912.8,2912.4,1.24]
[1731088058448,0.56,2912.7,2912.4,1.24]
[1731088058669,0.56,2912.7,2910.7,4.07330538]
[1731088058670,3.0,2912.5,2911.3,0.7561]
[1731088058873,0.7972,2912.3,2911.3,0.7561]
[1731088059385,3.0,2912.2,2911.0,0.7681]
[1731088060450,0.757,2912.1,2911.0,0.7681]
[1731088061158,0.757,2912.1,2910.3,0.7681]
[1731088061364,1.1337,2912.0,2910.3,0.7781]
[1731088062348,1.1337,2912.0,2910.4,0.06870689]
[1731088062861,1.1337,2912.0,2910.5,0.7764]
[1731088063191,0.8323,2912.5,2910.8,0.7764]
[1731088063395,0.8323,2912.5,2911.1,0.7649]
[1731088064365,0.8323,2912.5,2911.2,0.06868824]
[1731088064551,0.8323,2912.5,2911.1,0.7649]
[1731088064952,0.8323,2912.5,2911.2,0.06868821]
[1731088065174,0.8323,2912.5,2911.1,0.7649]
[1731088065376,0.8323,2912.5,2911.2,0.48382054]
[1731088066117,0.8323,2912.5,2911.5,0.7649]
[1731088069290,13.2123,2912.5,2911.5,0.7649]
[1731088074358,13.2123,2912.5,2911.6,0.06868456]
[1731088074993,13.2123,2912.5,2911.6,0.06867892]
[1731088075215,3.0,2912.7,2911.7,0.8245]
[1731088075359,3.0,2912.7,2911.8,0.06867419]
[1731088075560,3.0,2912.7,2911.7,0.8245]
[1731088077174,3.0,2912.7,2911.8,0.0686757]
[1731088077786,3.0,2912.7,2911.7,0.8245]
[1731088079985,4.61351,2912.7,2911.7,0.8245]
[1731088080187,0.7644,2912.6,2911.7,0.8245]
[1731088080592,0.7644,2912.6,2911.8,0.06867713]
[1731088080799,0.7644,2912.6,2911.8,0.06867604]
[1731088081300,0.7644,2912.6,2911.7,0.8245]
[1731088082874,0.7644,2912.6,2911.1,0.7796]
[1731088083101,0.7805,2912.3,2911.2,0.37796]
[1731088083403,0.7805,2912.3,2911.1,0.7796]
[1731088085272,0.7805,2912.3,2910.3,0.01]
[1731088085273,0.8218,2912.0,2910.6,0.814]
[1731088085471,0.8218,2911.7,2910.6,0.814]
[1731088087659,0.8218,2911.7,2910.8,0.7806]
[1731088089222,12.38,2911.9,2911.0,0.7806]
[1731088089462,0.7714,2912.5,2910.9,4.07330538]
[1731088089463,12.38,2912.4,2911.4,0.7806]
[1731088089669,13.1514,2912.5,2911.4,0.7806]
[1731088090863,3.0,2912.4,2911.4,0.7806]
[1731088092271,0.7998,2912.3,2911.1,1.27909054]
[1731088092569,0.7998,2912.2,2911.1,1.27909054]
[1731088093074,13.1798,2912.2,2911.1,1.27909054]
[1731088093379,1.61514,2912.3,2910.6,0.7937]
[1731088093380,0.7998,2912.0,2910.6,0.7937]
[1731088093543,3.0,2911.8,2910.6,0.7937]
[1731088094266,0.7998,2911.7,2910.6,0.7937]
[1731088095282,3.0,2911.8,2910.6,0.7937]
[1731088095283,0.7703,2911.5,2910.6,0.7937]
[1731088097640,0.8138,2911.2,2910.3,0.7971]
[1731088097946,0.8138,2911.0,2909.8,0.7971]
[1731088099075,3.0,2911.3,2909.3,4.86270538]
[1731088099076,3.0,2910.8,2909.3,4.86270538]
[1731088099237,4.07330538,2911.2,2909.4,0.48627054]
[1731088099238,3.0,2910.6,2909.4,0.48627054]
[1731088099442,3.0,2910.6,2909.5,0.7894]
[1731088102941,0.7679,2910.5,2909.5,0.7894]
[1731088103586,0.7679,2910.5,2909.2,0.7659]
[1731088104068,0.7679,2910.5,2908.7,0.01]
[1731088104069,0.7679,2910.5,2909.8,0.8167]
[1731088104269,12.38,2910.7,2909.9,0.5577234]
[1731088104470,0.7801,2910.8,2909.9,0.5577234]
[1731088104672,0.7801,2910.8,2909.9,0.48900054]
[1731088105049,0.7801,2910.8,2909.9,0.55772035]
[1731088105682,0.8197,2911.4,2910.1,4.07330538]
[1731088105860,3.0,2911.2,2910.3,0.8276]
[1731088108340,3.0,2911.2,2910.3,0.89631278]
[1731088108544,0.8197,2911.4,2910.3,0.89631278]
[1731088108791,12.38,2911.6,2910.6,0.8183]
[1731088108985,0.7761,2912.0,2910.9,0.8183]
[1731088111048,0.7761,2912.0,2911.0,0.06869256]
[1731088112084,0.8292,2912.3,2911.2,4.07330538]
[1731088112256,0.8292,2912.3,2911.3,0.825]
[1731088112473,0.8292,2912.3,2911.4,0.48983054]
[1731088112672,12.38,2912.6,2911.6,4.07330538]
[1731088112673,13.152,2912.6,2911.6,4.07330538]
[1731088112860,0.48549054,2913.3,2911.6,4.07330538]
[1731088112861,0.772,2913.1,2911.7,0.87697743]
[1731088113197,0.772,2913.1,2911.7,0.8083]
[1731088113405,2.13574905,2913.1,2911.8,0.48816054]
[1731088114176,0.7744,2913.0,2911.8,0.48816054]
[1731088116102,0.7591,2912.7,2911.3,0.7843]
[1731088117097,0.7591,2912.7,2911.4,0.0686891]
[1731088117315,0.7591,2912.7,2911.5,0.7709]
[1731088117457,0.7591,2912.7,2911.7,0.7709]
[1731088117661,3.0,2912.8,2911.9,0.7997]
[1731088118090,0.8317,2912.7,2911.9,0.7997]
[1731088118957,0.8317,2912.7,2911.7,0.7503]
[1731088119893,12.38,2912.6,2911.7,0.7503]
[1731088120302,3.7659,2912.5,2910.9,0.7698]
[1731088120507,3.7879,2912.3,2910.9,0.7698]
[1731088120868,3.7879,2912.3,2911.1,0.8304]
[1731088123810,0.8267,2912.0,2911.1,0.8304]
[1731088124019,0.8267,2912.0,2910.6,0.7543]
[1731088124314,4.07330538,2912.3,2910.6,0.7543]
[1731088124315,3.8267,2911.8,2910.6,0.7543]
[1731088124516,3.0,2911.6,2910.6,0.7543]
[1731088125379,13.2067,2911.5,2910.5,0.40733054]
[1731088125582,13.2067,2911.5,2910.3,0.82301234]
[1731088126410,13.2067,2911.5,2910.3,0.7543]
[1731088128116,3.0,2911.3,2910.3,0.7543]
[1731088128427,12.38,2911.4,2910.3,0.7543]
[1731088129631,12.38,2911.4,2910.5,0.8204]
[1731088130692,13.72659673,2911.4,2910.5,0.8204]
[1731088131512,12.38,2911.3,2910.5,0.8204]
[1731088132094,0.8037,2911.2,2909.9,0.7547]
[1731088132326,13.1837,2911.2,2909.9,0.7547]
[1731088133028,12.38,2911.1,2909.9,0.7547]
[1731088133238,1.31837,2911.0,2909.9,0.7547]
[1731088133552,0.7998,2910.9,2909.9,0.7547]
[1731088133698,0.8323,2910.7,2909.2,0.7816]
[1731088133900,12.38,2910.6,2909.4,0.7816]
[1731088135146,3.8328,2910.5,2909.4,0.7816]
[1731088135315,1.62128,2910.4,2909.4,0.7816]
[1731088140011,3.8328,2910.5,2909.4,0.7816]
[1731088140212,3.8328,2910.5,2909.5,0.06873538]
[1731088140501,0.7539,2910.8,2909.7,0.7562]
[1731088140922,0.7539,2910.8,2909.4,0.833]
[1731088141501,3.7539,2910.8,2909.4,0.833]
[1731088141904,5.499127,2910.8,2909.5,0.3833]
[1731088144312,5.499127,2910.8,2909.6,0.8186]
[1731088145637,12.38,2910.9,2910.1,0.7617]
[1731088145833,0.7775,2911.1,2910.2,0.06871937]
[1731088146147,0.7775,2911.1,2910.1,0.83041937]
[1731088146510,0.7775,2911.4,2910.1,0.83041937]
[1731088146749,13.1575,2911.6,2910.5,0.7617]
[1731088146961,12.38,2911.5,2910.5,0.7617]
[1731088149142,3.0,2911.4,2910.5,0.7617]
[1731088151031,1.68545927,2911.5,2911.4,0.01]
[1731088151226,2.14079467,2913.0,2911.4,0.01]
[1731088151227,1.42802166,2913.9,2912.2,0.56]
[1731088151431,0.8139,2914.2,2912.7,0.3065]
[1731088151777,0.8139,2914.2,2912.4,3.01]
[1731088151778,0.8139,2914.2,2913.3,0.3065]
[1731088152579,0.8139,2914.2,2913.3,0.37514722]
[1731088152725,0.8139,2914.2,2913.3,0.3065]
[1731088156563,0.8061,2914.7,2913.3,0.375147]
[1731088157952,0.55,2914.6,2913.3,0.3065]
[1731088158126,3.0,2914.4,2913.3,0.3065]
[1731088158327,0.589,2914.3,2913.3,0.3065]
[1731088158964,0.589,2914.3,2913.3,0.37514531]
[1731088159674,3.0,2914.4,2913.3,0.37514531]
[1731088159964,2.89,2914.5,2913.6,4.07330538]
[1731088160275,0.8061,2914.7,2913.7,0.8022]
[1731088161234,3.8061,2914.7,2913.7,0.8022]
[1731088161642,3.0,2914.7,2913.7,0.8022]
[1731088161945,3.589,2914.7,2913.7,1.28975054]
[1731088162834,3.589,2914.7,2913.7,0.8022]
[1731088164070,0.589,2914.7,2913.7,0.8022]
[1731088165262,0.589,2914.7,2913.7,0.7522]
[1731088169993,3.0,2914.6,2913.7,0.7522]
[1731088171892,3.0,2914.6,2913.4,0.77]
[1731088171893,0.8115,2914.5,2913.4,0.77]
[1731088172202,1.4594,2914.5,2913.4,0.77]
[1731088174109,0.6479,2914.5,2913.5,0.06864165]
[1731088174306,2.89,2914.6,2913.5,0.7596]
[1731088175335,3.0,2914.5,2913.5,0.7596]
[1731088176007,0.8261,2914.8,2913.5,0.7596]
[1731088176367,3.8261,2914.8,2913.5,0.7596]
[1731088177811,0.55,2914.7,2913.5,0.7596]
[1731088177974,0.43761,2914.6,2913.5,0.7596]
[1731088181909,3.0,2914.5,2913.5,0.7596]
[1731088187924,3.43761,2914.6,2913.5,0.7596]
[1731088194644,3.43761,2914.6,2913.7,0.7824]
[1731088199641,3.0,2914.4,2913.7,0.7824]
[1731088199966,0.644,2914.3,2913.7,0.7824]
[1731088200168,3.0,2914.4,2913.7,0.7824]
[1731088200534,3.0,2914.9,2913.7,0.7824]
[1731088200879,2.89,2915.2,2913.9,0.7536]
[1731088201171,2.89,2915.2,2914.0,0.82222563]
[1731088201388,2.89,2915.2,2914.0,0.7536]
[1731088201389,0.8039,2915.1,2914.0,0.7536]
[1731088201540,0.36939,2915.0,2914.0,0.7536]
[1731088201930,0.37939,2915.0,2914.0,0.7536]
[1731088202434,3.36939,2915.0,2914.0,0.7536]
[1731088202771,0.36939,2915.0,2914.0,0.7536]
[1731088204668,1.44688461,2915.0,2914.0,0.7536]
[1731088204845,3.96749461,2915.2,2914.0,0.7536]
[1731088205035,2.89,2915.2,2914.0,0.7536]
[1731088205431,2.89,2915.2,2914.0,0.82222886]
[1731088205671,1.07749461,2915.4,2914.0,0.82222886]
[1731088205877,0.54041541,2915.4,2914.2,0.8096]
[1731088206347,1.07749461,2915.5,2914.2,0.8096]
[1731088206602,1.07749461,2915.4,2914.2,0.8096]
[1731088206928,1.43665948,2915.5,2914.2,0.8096]
[1731088206929,4.07749461,2915.5,2914.2,0.8096]
[1731088207625,1.07749461,2915.4,2914.2,0.8096]
[1731088208627,1.07749461,2915.3,2914.2,0.8096]
[1731088209128,4.81016056,2915.4,2914.2,0.8096]
[1731088210931,4.07749461,2915.4,2914.5,3.30349967]
[1731088211145,4.07749461,2915.4,2914.1,0.48119692]
[1731088211146,1.07749461,2915.6,2914.8,3.30349967]
[1731088211332,1.79488829,2915.9,2914.9,0.7684]
[1731088211333,1.07749461,2915.9,2914.9,0.7684]
[1731088211534,1.07749461,2916.0,2915.1,0.7684]
[1731088211916,1.07749461,2915.9,2915.1,0.7684]
[1731088214547,3.0,2915.8,2915.1,0.7684]
[1731088214751,0.69674946,2915.7,2915.1,0.7684]
[1731088214919,0.7617,2915.6,2914.3,0.8238]
[1731088215726,3.7617,2915.6,2914.3,0.8238]
[1731088216121,4.83919461,2915.6,2914.3,0.8238]
[1731088216851,1.07421229,2915.7,2915.0,3.30349967]
[1731088217089,0.1370481,2916.9,2916.4,0.01]
[1731088217359,0.1370481,2916.9,2916.8,6.30349967]
[1731088217651,0.1370481,2916.9,2916.8,6.85349967]
[1731088218983,0.1370481,2916.9,2916.8,3.55]
[1731088219267,0.1370481,2916.9,2916.4,3.30349967]
[1731088219507,0.1370481,2916.9,2916.5,3.88134997]
[1731088220462,0.1370481,2916.9,2916.7,0.55]
[1731088221374,0.1370481,2916.9,2916.6,4.05618138]
[1731088222986,0.1370481,2916.9,2916.7,0.06856123]
[1731088223296,0.1370481,2916.9,2916.5,0.33134997]
[1731088223474,0.1370481,2916.9,2916.6,0.06856126]
[1731088223797,0.1370481,2916.9,2916.4,0.06856125]
[1731088224162,0.1370481,2916.9,2916.4,0.55]
[1731088224562,0.1370481,2916.9,2916.5,0.06856014]
[1731088225199,0.1370481,2916.9,2916.8,4.05618138]
[1731088225386,0.1370481,2916.9,2916.8,4.46179952]
[1731088225698,0.1370481,2916.9,2916.8,0.40561814]
[1731088225904,0.1370481,2916.9,2916.4,4.05618138]
[1731088226698,0.1370481,2916.9,2916.5,0.06856458]
[1731088226997,0.1370481,2916.9,2915.8,0.01]
[1731088226998,0.1370481,2916.9,2916.1,0.01]
[1731088227181,0.1370481,2916.9,2916.0,0.01]
[1731088227578,0.1370481,2916.9,2916.1,0.55]
[1731088227775,0.1370481,2916.9,2916.2,0.06856324]
[1731088227977,0.1370481,2916.9,2916.3,0.55]
[1731088228996,0.1370481,2916.9,2915.5,0.01]
[1731088229206,0.1370481,2916.9,2915.2,3.43960718]
[1731088229207,4.05618138,2916.8,2915.3,0.01]
[1731088229419,4.05618138,2916.8,2915.2,0.01]
[1731088229704,4.05618138,2916.8,2915.1,0.33034997]
[1731088229705,4.05618138,2916.4,2915.1,0.33034997]
[1731088229903,4.05618138,2916.4,2914.9,0.01]
[1731088230476,4.05618138,2916.4,2914.5,0.02]
[1731088230779,3.0,2916.3,2914.5,0.02]
[1731088231188,4.05618138,2916.0,2914.3,0.01]
[1731088231382,0.40561814,2915.9,2914.1,0.43257285]
[1731088231708,4.05618138,2915.6,2914.1,0.43257285]
[1731088231923,4.05618138,2915.6,2914.2,0.06860215]
[1731088232289,0.40561814,2915.9,2914.3,0.01]
[1731088232613,0.40561814,2915.9,2914.1,0.02]
[1731088233282,0.40561814,2915.9,2914.1,0.01]
[1731088233283,0.52545995,2915.8,2914.1,0.01]
[1731088233481,0.52545995,2915.8,2913.8,0.44960718]
[1731088233482,4.05618138,2915.6,2913.8,0.02]
[1731088234208,4.05618138,2915.6,2913.8,0.01]
[1731088234415,4.05618138,2915.2,2913.6,0.02]
[1731088234576,4.82958138,2915.2,2913.4,0.58753112]
[1731088234911,4.82958138,2915.2,2913.4,0.01]
[1731088235091,4.82958138,2915.2,2913.5,0.01]
[1731088235292,4.82958138,2915.2,2913.6,0.06861911]
[1731088235872,3.352546,2915.7,2913.8,0.01]
[1731088236087,3.352546,2915.7,2913.9,0.55]
[1731088236287,3.352546,2915.7,2913.8,0.07860829]
[1731088236288,3.352546,2915.7,2913.8,0.01]
[1731088236510,1.02987274,2915.6,2913.9,0.55]
[1731088236758,1.02987274,2915.6,2914.1,0.55]
[1731088236940,3.352546,2915.7,2914.2,0.06861136]
[1731088237122,3.352546,2915.7,2914.1,0.55]
[1731088237518,4.05618138,2915.4,2913.7,0.56]
[1731088238109,4.05618138,2915.4,2913.9,0.55]
[1731088238313,4.05618138,2915.4,2914.0,0.06861439]
[1731088238947,4.05618138,2915.4,2913.9,0.55]
[1731088239150,4.46179952,2915.4,2913.7,0.56]
[1731088239448,4.46179952,2915.4,2913.9,0.55]
[1731088239653,4.46179952,2915.4,2914.0,3.06861921]
[1731088239860,4.46179952,2915.4,2914.0,0.06861921]
[1731088240023,0.7778,2915.2,2913.8,0.55]
[1731088240212,0.7778,2915.2,2913.9,0.06861921]
[1731088240819,0.7778,2915.2,2913.8,0.55]
[1731088241019,0.7778,2915.2,2913.9,0.06861926]
[1731088241220,0.422398,2915.1,2913.5,0.07862277]
[1731088241460,0.422398,2915.1,2913.6,0.55]
[1731088241617,0.7778,2915.2,2913.8,0.55]
[1731088241817,3.0,2915.3,2914.0,0.55]
[1731088242041,3.0,2915.3,2913.6,0.55]
[1731088242580,3.0,2915.3,2913.5,0.01]
[1731088242724,3.0,2915.3,2913.4,0.55]
[1731088242927,0.70561814,2915.2,2913.4,0.55]
[1731088243326,0.70561814,2915.2,2913.6,0.55]
[1731088243652,0.70561814,2915.2,2913.7,0.0686259]
[1731088245325,3.0,2915.3,2913.8,0.55]
[1731088245528,3.0,2915.3,2913.9,0.06861979]
[1731088245949,3.0,2915.3,2913.4,0.62862593]
[1731088246548,3.0,2915.3,2913.4,0.61862388]
[1731088246748,3.0,2915.3,2913.4,0.62862388]
[1731088246948,0.70561814,2915.2,2913.4,0.62862411]
[1731088247166,0.70561814,2915.2,2913.4,0.62729539]
[1731088247470,4.05618138,2915.0,2913.4,0.54867128]
[1731088247638,4.05618138,2915.0,2912.7,2.47480395]
[1731088247639,4.05618138,2914.6,2912.7,0.02]
[1731088247858,4.05618138,2914.6,2913.1,0.742]
[1731088248177,4.05618138,2914.6,2912.7,0.02]
[1731088248742,3.7819,2914.9,2912.7,0.13647922]
[1731088248743,4.05618138,2914.2,2912.7,0.13647922]
[1731088249056,4.05618138,2914.2,2912.8,0.06864291]
[1731088249441,0.8288,2914.5,2912.5,0.20627221]
[1731088249442,3.304631,2914.1,2912.5,0.20627221]
[1731088249645,3.304631,2914.1,2912.5,0.14669858]
[1731088249844,3.304631,2913.8,2912.2,1.372787]
[1731088250045,3.304631,2913.5,2911.9,0.01]
[1731088250559,3.304631,2913.5,2911.9,0.1393796]
[1731088250754,3.304631,2913.5,2911.7,0.01]
[1731088250998,3.304631,2913.5,2911.9,0.01]
[1731088251142,3.304631,2913.5,2911.9,0.08865645]
[1731088251481,4.06837074,2913.8,2911.9,0.08865645]
[1731088251773,3.0,2913.7,2911.9,0.02]
[1731088252154,3.0,2913.7,2911.9,0.01]
[1731088252357,3.0,2913.7,2912.1,0.55]
[1731088253086,3.0,2913.7,2912.3,0.55]
[1731088253282,3.0,2913.7,2912.4,0.06865526]
[1731088254062,0.7882,2914.0,2912.5,0.55]
[1731088254267,4.06837074,2914.2,2912.7,0.55]
[1731088254495,4.06837074,2914.2,2912.8,0.06864351]
[1731088255565,3.0,2914.1,2912.8,0.06864351]
[1731088257879,4.06837074,2914.2,2912.9,0.55]
[1731088258077,4.86187074,2914.6,2913.0,0.06863944]
[1731088258256,5.23022074,2914.6,2913.0,0.06863944]
[1731088258994,5.23022074,2914.6,2913.1,0.55]
[1731088259166,5.23022074,2914.6,2913.2,0.06863694]
[1731088259779,5.23022074,2914.6,2913.3,0.55]
[1731088260092,0.771,2914.9,2912.8,0.01]
[1731088260511,0.771,2914.9,2913.0,3.55]
[1731088260806,2.89,2915.2,2913.2,0.55]
[1731088260959,4.06837074,2915.4,2913.4,3.55]
[1731088261153,0.8323,2915.6,2913.6,0.55]
[1731088261359,0.8323,2915.6,2913.8,0.55]
[1731088261613,1.64662167,2915.6,2913.9,0.06861683]
[1731088261801,1.64662167,2915.6,2914.0,0.55]
[1731088261956,1.64662167,2915.6,2914.1,0.06861684]
[1731088262289,4.06837074,2915.4,2913.3,0.02]
[1731088262501,4.06837074,2915.4,2913.5,0.56]
[1731088262658,4.06837074,2915.4,2913.7,0.55]
[1731088263072,4.06837074,2915.4,2913.9,0.55]
[1731088263272,4.06837074,2915.4,2914.0,0.43047936]
[1731088263473,4.06837074,2915.4,2914.0,0.06861751]
[1731088264490,0.8323,2915.6,2914.1,0.55]
[1731088264821,5.89,2915.7,2914.3,0.55]
[1731088264822,3.0,2915.7,2914.3,0.55]
[1731088265111,3.70683707,2915.7,2914.3,0.55]
[1731088265865,3.70683707,2915.7,2913.7,0.01]
[1731088266311,3.70683707,2915.7,2913.8,0.55]
[1731088266669,3.70683707,2915.7,2913.6,0.55]
[1731088266973,3.70683707,2915.7,2913.6,0.68600926]
[1731088266974,0.7737,2915.6,2913.6,0.68600926]
[1731088267175,1.55122078,2915.6,2913.8,0.55]
[1731088269215,1.55122078,2915.6,2914.0,0.55]
[1731088269516,1.55122078,2915.6,2914.1,0.06861414]
[1731088269876,3.7979,2915.9,2914.2,0.55]
[1731088270114,3.0,2915.9,2914.4,0.55]
[1731088270317,4.86627074,2916.2,2914.6,0.55]
[1731088270515,4.86627074,2916.2,2914.8,0.55]
[1731088270723,4.86627074,2916.2,2914.9,0.06859863]
[1731088271027,4.86627074,2916.2,2914.6,0.55]
[1731088271028,0.48662707,2916.1,2914.8,0.55]
[1731088271201,0.48662707,2916.1,2914.6,0.55]
[1731088271523,0.48662707,2916.1,2914.4,0.55]
[1731088271524,3.48662707,2916.1,2914.4,0.55]
[1731088272299,4.86627074,2916.2,2914.6,0.55]
[1731088272480,0.1370481,2916.9,2914.6,0.55]
[1731088272481,0.7941,2916.5,2914.8,0.55]
[1731088272685,4.06837074,2916.6,2914.8,0.56]
[1731088273315,0.7941,2916.8,2915.0,0.55]
[1731088273495,3.43566496,2916.9,2915.2,0.55]
[1731088273700,3.43566496,2916.9,2915.3,0.43044301]
[1731088273898,3.43566496,2916.9,2915.4,0.55]
[1731088274097,0.1370481,2916.9,2915.7,3.29861686]
[1731088274314,0.1370481,2916.9,2915.4,3.0]
[1731088274315,0.1370481,2916.9,2915.8,1.0034355]
[1731088274584,0.1370481,2916.9,2915.4,3.29861686]
[1731088274585,3.43566496,2916.9,2915.4,0.55]
[1731088275183,3.43566496,2916.9,2915.6,0.55]
[1731088275399,0.1370481,2916.9,2915.7,0.06857705]
[1731088276884,0.1370481,2916.9,2915.8,0.55]
[1731088277082,0.1370481,2916.9,2916.0,0.55]
[1731088277327,0.1370481,2916.9,2916.2,0.55]
[1731088277494,0.1370481,2916.9,2916.1,0.06856556]
[1731088277495,0.1370481,2916.9,2916.4,0.55]